[Event "*** SCC Grand Prix: Titled Tuesday Blitz"]
[Site "Chess.com"]
[Date "2020.06.02"]
[Round "5"]
[White "czasnaszachy"]
[Black "VladimirBugayev"]
[Result "0-1"]
[WhiteElo "2342"]
[BlackElo "2156"]
[TimeControl "180+1"]
[EndTime "10:58:03 PDT"]
[Termination "VladimirBugayev won on time"]

1. d4 {[%clk 0:03:00.9]} 1... d5 {[%clk 0:02:59.5]} 2. c4 {[%clk 0:03:00.2]}
2... c6 {[%clk 0:02:59.9]} 3. cxd5 {[%clk 0:02:50]} 3... cxd5 {[%clk 0:02:59.1]}
4. Nc3 {[%clk 0:02:49]} 4... Nc6 {[%clk 0:02:59]} 5. Bf4 {[%clk 0:02:42.1]} 5...
a6 {[%clk 0:02:58.6]} 6. e3 {[%clk 0:02:41.9]} 6... Nf6 {[%clk 0:02:59]} 7. Nf3
{[%clk 0:02:41.3]} 7... Bf5 {[%clk 0:02:46.3]} 8. a3 {[%clk 0:02:02.8]} 8... Rc8
{[%clk 0:02:44.6]} 9. Bd3 {[%clk 0:01:55.6]} 9... Bxd3 {[%clk 0:02:39.8]} 10.
Qxd3 {[%clk 0:01:56.5]} 10... e6 {[%clk 0:02:40.1]} 11. O-O {[%clk 0:01:56.8]}
11... Be7 {[%clk 0:02:40.6]} 12. Rac1 {[%clk 0:01:52.5]} 12... O-O {[%clk
0:02:40.3]} 13. b4 {[%clk 0:01:52.1]} 13... a5 {[%clk 0:02:05.2]} 14. b5 {[%clk
0:01:46.2]} 14... Nb8 {[%clk 0:02:05.2]} 15. a4 {[%clk 0:01:45.3]} 15... Nbd7
{[%clk 0:01:54.3]} 16. h3 {[%clk 0:01:40.4]} 16... Nb6 {[%clk 0:01:54.5]} 17.
Nd2 {[%clk 0:01:35.6]} 17... Bb4 {[%clk 0:01:46.6]} 18. Ndb1 {[%clk 0:01:05.3]}
18... h6 {[%clk 0:01:39.3]} 19. Rfd1 {[%clk 0:01:03.3]} 19... Qe7 {[%clk
0:01:23.6]} 20. Qc2 {[%clk 0:00:38.9]} 20... Ne4 {[%clk 0:01:18.1]} 21. Qb3
{[%clk 0:00:31]} 21... Nxc3 {[%clk 0:01:12.2]} 22. Nxc3 {[%clk 0:00:30.6]} 22...
Rc4 {[%clk 0:01:12.7]} 23. Rc2 {[%clk 0:00:27.5]} 23... Rfc8 {[%clk 0:01:12.6]}
24. Rdc1 {[%clk 0:00:27.8]} 24... Bxc3 {[%clk 0:00:45.5]} 25. Rxc3 {[%clk
0:00:27.5]} 25... Qb4 {[%clk 0:00:42.8]} 26. Qxb4 {[%clk 0:00:06.1]} 26... axb4
{[%clk 0:00:39.1]} 27. Rxc4 {[%clk 0:00:06.2]} 27... dxc4 {[%clk 0:00:38.9]} 28.
a5 {[%clk 0:00:03.7]} 28... b3 {[%clk 0:00:34.6]} 29. axb6 {[%clk 0:00:03]}
29... b2 {[%clk 0:00:34.3]} 30. Rb1 {[%clk 0:00:03.3]} 30... c3 {[%clk
0:00:34.5]} 31. e4 {[%clk 0:00:03.2]} 31... Ra8 {[%clk 0:00:31.8]} 32. Be3
{[%clk 0:00:01.5]} 32... Ra1 {[%clk 0:00:31.3]} 0-1

[Event "*** SCC Grand Prix: Titled Tuesday Blitz"]
[Site "Chess.com"]
[Date "2020.06.02"]
[Round "5"]
[White "GM_Buhmann"]
[Black "Norival"]
[Result "0-1"]
[WhiteElo "2818"]
[BlackElo "2647"]
[TimeControl "180+1"]
[EndTime "10:58:05 PDT"]
[Termination "Norival won by resignation"]

1. Nf3 {[%clk 0:03:00.9]} 1... d5 {[%clk 0:02:59]} 2. d4 {[%clk 0:03:00.5]} 2...
Nf6 {[%clk 0:02:58.8]} 3. c4 {[%clk 0:03:01]} 3... c6 {[%clk 0:02:58.9]} 4. e3
{[%clk 0:03:00.6]} 4... a6 {[%clk 0:02:56.6]} 5. Nc3 {[%clk 0:02:55]} 5... Bf5
{[%clk 0:02:54]} 6. Bd2 {[%clk 0:02:42.3]} 6... e6 {[%clk 0:02:53.7]} 7. Qb3
{[%clk 0:02:36.1]} 7... Qc8 {[%clk 0:02:30.1]} 8. Nh4 {[%clk 0:02:31]} 8... Be4
{[%clk 0:02:25.5]} 9. f3 {[%clk 0:02:30.5]} 9... dxc4 {[%clk 0:02:17.1]} 10.
Bxc4 {[%clk 0:02:29.1]} 10... Bd5 {[%clk 0:02:17.2]} 11. e4 {[%clk 0:02:23]}
11... Bxc4 {[%clk 0:02:11.4]} 12. Qxc4 {[%clk 0:02:23.2]} 12... Be7 {[%clk
0:02:08.8]} 13. O-O {[%clk 0:02:09.4]} 13... O-O {[%clk 0:02:06.6]} 14. g3
{[%clk 0:02:03.6]} 14... Rd8 {[%clk 0:02:03.9]} 15. Be3 {[%clk 0:02:00.6]} 15...
b5 {[%clk 0:01:51.6]} 16. Qe2 {[%clk 0:01:59.7]} 16... c5 {[%clk 0:01:51.5]} 17.
dxc5 {[%clk 0:01:45.7]} 17... Bxc5 {[%clk 0:01:51]} 18. Rac1 {[%clk 0:01:45.7]}
18... Nbd7 {[%clk 0:01:28.8]} 19. Ng2 {[%clk 0:01:36.8]} 19... Bxe3+ {[%clk
0:01:25.3]} 20. Qxe3 {[%clk 0:01:36.3]} 20... Qb7 {[%clk 0:01:25.3]} 21. e5
{[%clk 0:01:28.6]} 21... Nd5 {[%clk 0:01:20]} 22. Qe4 {[%clk 0:00:57.6]} 22...
Nc5 {[%clk 0:01:05.4]} 23. Qe2 {[%clk 0:00:56.2]} 23... Qa7 {[%clk 0:00:47.1]}
24. Nxd5 {[%clk 0:00:48.9]} 24... Rxd5 {[%clk 0:00:48]} 25. Kh1 {[%clk
0:00:45.3]} 25... Nd3 {[%clk 0:00:41]} 26. Rcd1 {[%clk 0:00:40.8]} 26... Rad8
{[%clk 0:00:39]} 27. Ne3 {[%clk 0:00:31.5]} 27... R5d7 {[%clk 0:00:36.2]} 28. f4
{[%clk 0:00:26.7]} 28... h6 {[%clk 0:00:28.8]} 29. f5 {[%clk 0:00:19.4]} 29...
Qb7+ {[%clk 0:00:26.4]} 30. Qg2 {[%clk 0:00:19.3]} 30... Nf2+ {[%clk 0:00:21.3]}
0-1

[Event "*** SCC Grand Prix: Titled Tuesday Blitz"]
[Site "Chess.com"]
[Date "2020.06.02"]
[Round "5"]
[White "JakubPulpan"]
[Black "Borsuk_Konstantin"]
[Result "1/2-1/2"]
[WhiteElo "2719"]
[BlackElo "2567"]
[TimeControl "180+1"]
[EndTime "10:58:05 PDT"]
[Termination "Game drawn by repetition"]

1. e4 {[%clk 0:03:00.9]} 1... e6 {[%clk 0:02:59.5]} 2. d4 {[%clk 0:02:58.6]}
2... d5 {[%clk 0:02:59.8]} 3. Nd2 {[%clk 0:02:58.5]} 3... Nf6 {[%clk 0:02:59.3]}
4. Bd3 {[%clk 0:02:57.6]} 4... c5 {[%clk 0:02:55.6]} 5. e5 {[%clk 0:02:56.6]}
5... Nfd7 {[%clk 0:02:55]} 6. c3 {[%clk 0:02:47.5]} 6... Nc6 {[%clk 0:02:54.9]}
7. Ne2 {[%clk 0:02:47.7]} 7... b6 {[%clk 0:02:51.8]} 8. O-O {[%clk 0:02:45.5]}
8... cxd4 {[%clk 0:02:52]} 9. cxd4 {[%clk 0:02:46]} 9... Nb4 {[%clk 0:02:52.3]}
10. Bb1 {[%clk 0:02:44.3]} 10... Ba6 {[%clk 0:02:52.6]} 11. a3 {[%clk
0:02:40.2]} 11... Nd3 {[%clk 0:02:51.1]} 12. Bxd3 {[%clk 0:02:35.1]} 12... Bxd3
{[%clk 0:02:50.7]} 13. Nf3 {[%clk 0:02:36]} 13... Bg6 {[%clk 0:02:37.1]} 14. Bg5
{[%clk 0:02:32.6]} 14... Be7 {[%clk 0:02:23.5]} 15. Bxe7 {[%clk 0:02:32.7]}
15... Qxe7 {[%clk 0:02:23.4]} 16. Nf4 {[%clk 0:02:33.6]} 16... O-O {[%clk
0:02:17.7]} 17. Nxg6 {[%clk 0:02:32.1]} 17... fxg6 {[%clk 0:02:13.9]} 18. Rc1
{[%clk 0:02:33]} 18... Rfc8 {[%clk 0:02:05.8]} 19. Qa4 {[%clk 0:02:31.8]} 19...
Nf8 {[%clk 0:02:04.2]} 20. Rc6 {[%clk 0:02:24.6]} 20... g5 {[%clk 0:00:59.6]}
21. Rfc1 {[%clk 0:02:22.3]} 21... Rxc6 {[%clk 0:00:58.3]} 22. Qxc6 {[%clk
0:02:23.2]} 22... Rd8 {[%clk 0:00:55.5]} 23. h3 {[%clk 0:02:20.6]} 23... h6
{[%clk 0:00:52.3]} 24. Qc7 {[%clk 0:02:19.9]} 24... Rd7 {[%clk 0:00:49.7]} 25.
Qc8 {[%clk 0:02:18.7]} 25... Kh7 {[%clk 0:00:47]} 26. Ne1 {[%clk 0:02:15.3]}
26... Ng6 {[%clk 0:00:43.3]} 27. Nd3 {[%clk 0:02:11.1]} 27... Qf7 {[%clk
0:00:39.9]} 28. Rc6 {[%clk 0:01:55.9]} 28... Re7 {[%clk 0:00:38.9]} 29. Rd6
{[%clk 0:01:39.9]} 29... Qf5 {[%clk 0:00:29.1]} 30. Qc2 {[%clk 0:01:37.2]} 30...
Nf4 {[%clk 0:00:19.8]} 31. Nb4 {[%clk 0:01:34.1]} 31... Qxc2 {[%clk 0:00:19.4]}
32. Nxc2 {[%clk 0:01:35]} 32... Rc7 {[%clk 0:00:20]} 33. Ne3 {[%clk 0:01:34.2]}
33... Ne2+ {[%clk 0:00:18.9]} 34. Kh2 {[%clk 0:01:32.2]} 34... Nxd4 {[%clk
0:00:19.5]} 35. Rd8 {[%clk 0:01:27.6]} 35... Rc2 {[%clk 0:00:19.1]} 36. Rd7
{[%clk 0:01:20.4]} 36... Rxf2 {[%clk 0:00:17.4]} 37. Ng4 {[%clk 0:01:20.1]}
37... Rxb2 {[%clk 0:00:15.4]} 38. Nf6+ {[%clk 0:01:20.3]} 38... Kg6 {[%clk
0:00:15.6]} 39. Ne8 {[%clk 0:01:20.7]} 39... Kf5 {[%clk 0:00:15.5]} 40. Rxa7
{[%clk 0:01:14.3]} 40... Nf3+ {[%clk 0:00:13.5]} 41. Kg3 {[%clk 0:01:13.8]}
41... Nxe5 {[%clk 0:00:11.6]} 42. Nxg7+ {[%clk 0:01:14.4]} 42... Kf6 {[%clk
0:00:11.9]} 43. Ne8+ {[%clk 0:01:13.6]} 43... Kg6 {[%clk 0:00:11.8]} 44. Rg7+
{[%clk 0:01:12.3]} 44... Kf5 {[%clk 0:00:11.8]} 45. Nd6+ {[%clk 0:01:12.4]}
45... Kf6 {[%clk 0:00:12]} 46. Ne8+ {[%clk 0:01:13.3]} 46... Kf5 {[%clk
0:00:11.9]} 47. Nd6+ {[%clk 0:01:12.7]} 47... Kf6 {[%clk 0:00:11.7]} 48. Ne8+
{[%clk 0:01:05.2]} 48... Kf5 {[%clk 0:00:10.9]} 1/2-1/2

[Event "*** SCC Grand Prix: Titled Tuesday Blitz"]
[Site "Chess.com"]
[Date "2020.06.02"]
[Round "5"]
[White "DraG0s3L"]
[Black "ahappypawn"]
[Result "1-0"]
[WhiteElo "2514"]
[BlackElo "2362"]
[TimeControl "180+1"]
[EndTime "10:58:05 PDT"]
[Termination "DraG0s3L won by resignation"]

1. Nf3 {[%clk 0:03:00.9]} 1... d5 {[%clk 0:02:57.6]} 2. b3 {[%clk 0:03:01.4]}
2... c5 {[%clk 0:02:54.8]} 3. Bb2 {[%clk 0:03:01.8]} 3... Nc6 {[%clk 0:02:52.5]}
4. e3 {[%clk 0:03:02]} 4... a6 {[%clk 0:02:48.4]} 5. Be2 {[%clk 0:03:00.6]} 5...
Nf6 {[%clk 0:02:46.5]} 6. d4 {[%clk 0:03:00.3]} 6... Bg4 {[%clk 0:02:29.2]} 7.
O-O {[%clk 0:03:00]} 7... e6 {[%clk 0:02:28.6]} 8. c4 {[%clk 0:02:59.5]} 8...
cxd4 {[%clk 0:02:22.3]} 9. Nxd4 {[%clk 0:02:56.8]} 9... Bxe2 {[%clk 0:02:20.8]}
10. Qxe2 {[%clk 0:02:57.5]} 10... Bd6 {[%clk 0:02:08.4]} 11. Nc3 {[%clk
0:02:51.2]} 11... O-O {[%clk 0:01:53.7]} 12. Rfd1 {[%clk 0:02:43.6]} 12... Qc7
{[%clk 0:01:33.5]} 13. h3 {[%clk 0:02:44]} 13... Nxd4 {[%clk 0:01:27.9]} 14.
Rxd4 {[%clk 0:02:43.8]} 14... Be5 {[%clk 0:01:12.5]} 15. Rh4 {[%clk 0:02:43]}
15... Rfd8 {[%clk 0:00:56.5]} 16. Rc1 {[%clk 0:02:39.5]} 16... d4 {[%clk
0:00:49]} 17. exd4 {[%clk 0:02:30.6]} 17... Bxd4 {[%clk 0:00:49.9]} 18. Rxd4
{[%clk 0:01:58.4]} 18... Rxd4 {[%clk 0:00:50.8]} 19. Nd5 {[%clk 0:01:58.7]}
19... exd5 {[%clk 0:00:28.2]} 20. Bxd4 {[%clk 0:01:58.1]} 20... Qf4 {[%clk
0:00:28.1]} 21. Be3 {[%clk 0:01:44]} 21... Qe4 {[%clk 0:00:26.9]} 22. Qd2 {[%clk
0:01:34.6]} 22... h6 {[%clk 0:00:23.5]} 23. Bd4 {[%clk 0:01:27.8]} 23... Nh5
{[%clk 0:00:18.5]} 24. Re1 {[%clk 0:01:24.4]} 24... Qf5 {[%clk 0:00:15.8]} 25.
Re5 {[%clk 0:01:17.1]} 25... Qb1+ {[%clk 0:00:15.3]} 26. Kh2 {[%clk 0:01:17.4]}
26... Nf6 {[%clk 0:00:14.8]} 27. cxd5 {[%clk 0:01:17]} 27... Rd8 {[%clk
0:00:14.5]} 28. Be3 {[%clk 0:01:00.8]} 28... Qg6 {[%clk 0:00:13.7]} 29. Qd4
{[%clk 0:00:54.6]} 29... Rd6 {[%clk 0:00:13]} 30. Bf4 {[%clk 0:00:52.5]} 30...
Rd7 {[%clk 0:00:12.7]} 31. d6 {[%clk 0:00:51]} 31... Nh5 {[%clk 0:00:11.3]} 32.
Re8+ {[%clk 0:00:49.1]} 32... Kh7 {[%clk 0:00:11]} 33. Be5 {[%clk 0:00:48.7]}
33... Qf5 {[%clk 0:00:09.8]} 34. g4 {[%clk 0:00:43.4]} 34... Qf3 {[%clk
0:00:09.1]} 35. gxh5 {[%clk 0:00:42.5]} 35... f6 {[%clk 0:00:10]} 36. Bg3 {[%clk
0:00:41.5]} 36... Qxh5 {[%clk 0:00:09]} 37. Qe4+ {[%clk 0:00:40.5]} 37... f5
{[%clk 0:00:08.1]} 38. Qe6 {[%clk 0:00:40.7]} 38... Qf7 {[%clk 0:00:07.3]} 39.
Qxf7 {[%clk 0:00:40]} 39... Rxf7 {[%clk 0:00:08.2]} 40. Re7 {[%clk 0:00:40.6]}
1-0

[Event "*** SCC Grand Prix: Titled Tuesday Blitz"]
[Site "Chess.com"]
[Date "2020.06.02"]
[Round "5"]
[White "GAusal"]
[Black "snap_man"]
[Result "0-1"]
[WhiteElo "1990"]
[BlackElo "2295"]
[TimeControl "180+1"]
[EndTime "10:58:06 PDT"]
[Termination "snap_man won on time"]

1. e4 {[%clk 0:03:00.9]} 1... c6 {[%clk 0:03:00]} 2. d4 {[%clk 0:02:59.5]} 2...
d5 {[%clk 0:03:00.9]} 3. e5 {[%clk 0:02:58.8]} 3... Bf5 {[%clk 0:03:00.3]} 4.
Nf3 {[%clk 0:02:53]} 4... e6 {[%clk 0:03:00.3]} 5. Be2 {[%clk 0:02:49.8]} 5...
Bb4+ {[%clk 0:02:58.5]} 6. Nbd2 {[%clk 0:02:43]} 6... Ne7 {[%clk 0:02:57.7]} 7.
c3 {[%clk 0:02:39.5]} 7... Ba5 {[%clk 0:02:57.6]} 8. Nh4 {[%clk 0:02:35.2]} 8...
Nd7 {[%clk 0:02:50]} 9. O-O {[%clk 0:02:30.8]} 9... O-O {[%clk 0:02:48.4]} 10.
Nxf5 {[%clk 0:02:26.7]} 10... Nxf5 {[%clk 0:02:48.2]} 11. Bd3 {[%clk 0:02:22.3]}
11... Ne7 {[%clk 0:02:42]} 12. Qh5 {[%clk 0:02:17.8]} 12... Ng6 {[%clk
0:01:41.7]} 13. Nf3 {[%clk 0:02:11.6]} 13... Re8 {[%clk 0:01:27.1]} 14. Ng5
{[%clk 0:02:00.2]} 14... Ndf8 {[%clk 0:01:27]} 15. f4 {[%clk 0:01:54.5]} 15...
h6 {[%clk 0:00:54.7]} 16. Nxf7 {[%clk 0:01:47.6]} 16... Kxf7 {[%clk 0:00:53.2]}
17. Bxg6+ {[%clk 0:01:40.8]} 17... Nxg6 {[%clk 0:00:52.3]} 18. f5 {[%clk
0:01:36.6]} 18... exf5 {[%clk 0:00:37.1]} 19. Rxf5+ {[%clk 0:01:31.6]} 19... Kg8
{[%clk 0:00:37.6]} 20. Qxg6 {[%clk 0:01:28.3]} 20... Qh4 {[%clk 0:00:37.6]} 21.
Bg5 {[%clk 0:01:12.3]} 21... Qe4 {[%clk 0:00:30.8]} 22. Bxh6 {[%clk 0:01:04.2]}
22... Re7 {[%clk 0:00:31]} 23. Raf1 {[%clk 0:00:07.3]} 23... Bb6 {[%clk
0:00:30.4]} 24. Bc1 {[%clk 0:00:05.7]} 24... Rxe5 {[%clk 0:00:23.8]} 0-1

[Event "*** SCC Grand Prix: Titled Tuesday Blitz"]
[Site "Chess.com"]
[Date "2020.06.02"]
[Round "5"]
[White "Angel_Hranitel_37"]
[Black "serhanberat_ozdemir"]
[Result "1-0"]
[WhiteElo "2392"]
[BlackElo "2514"]
[TimeControl "180+1"]
[EndTime "10:58:08 PDT"]
[Termination "Angel_Hranitel_37 won on time"]

1. d4 {[%clk 0:03:00.9]} 1... Nf6 {[%clk 0:02:59.8]} 2. Nf3 {[%clk 0:03:01.2]}
2... g6 {[%clk 0:02:59.8]} 3. g3 {[%clk 0:03:01.5]} 3... Bg7 {[%clk 0:02:59.8]}
4. Bg2 {[%clk 0:03:01.9]} 4... O-O {[%clk 0:02:58.7]} 5. O-O {[%clk 0:03:02.6]}
5... d6 {[%clk 0:02:57.7]} 6. Nc3 {[%clk 0:03:03.3]} 6... a5 {[%clk 0:02:45.5]}
7. a4 {[%clk 0:03:02.2]} 7... Na6 {[%clk 0:02:41.9]} 8. e4 {[%clk 0:03:01.9]}
8... c6 {[%clk 0:02:39]} 9. h3 {[%clk 0:03:02]} 9... e5 {[%clk 0:02:23.5]} 10.
Be3 {[%clk 0:03:00.1]} 10... Qc7 {[%clk 0:02:07]} 11. dxe5 {[%clk 0:02:35.1]}
11... dxe5 {[%clk 0:02:05]} 12. Qe2 {[%clk 0:02:35.8]} 12... Nb4 {[%clk
0:02:00.9]} 13. Rac1 {[%clk 0:02:30.7]} 13... b6 {[%clk 0:01:54.5]} 14. Nd2
{[%clk 0:02:26.8]} 14... Ba6 {[%clk 0:01:53]} 15. Nc4 {[%clk 0:02:25.8]} 15...
Rab8 {[%clk 0:01:15.8]} 16. Rfd1 {[%clk 0:02:16.9]} 16... Rfd8 {[%clk
0:01:05.6]} 17. Rxd8+ {[%clk 0:02:15.4]} 17... Qxd8 {[%clk 0:01:06.5]} 18. Rd1
{[%clk 0:02:14.3]} 18... Qe7 {[%clk 0:01:04]} 19. b3 {[%clk 0:02:07.8]} 19...
Qe6 {[%clk 0:01:01.1]} 20. Bf1 {[%clk 0:01:42]} 20... Bf8 {[%clk 0:00:40.4]} 21.
Kh2 {[%clk 0:01:28.9]} 21... Nd7 {[%clk 0:00:24.4]} 22. Qd2 {[%clk 0:00:53.2]}
22... Nc5 {[%clk 0:00:18.6]} 23. Nxb6 {[%clk 0:00:34.9]} 23... Bxf1 {[%clk
0:00:08.7]} 24. Rxf1 {[%clk 0:00:35.8]} 24... Rxb6 {[%clk 0:00:03.4]} 25. Qd8
{[%clk 0:00:36.4]} 25... Rb7 {[%clk 0:00:01.6]} 26. Bxc5 {[%clk 0:00:36.4]}
26... Re7 {[%clk 0:00:01.1]} 27. Bxe7 {[%clk 0:00:35.9]} 27... Qxe7 {[%clk
0:00:02]} 28. Qxe7 {[%clk 0:00:36.4]} 28... Bxe7 {[%clk 0:00:02.9]} 29. Rc1
{[%clk 0:00:35]} 29... Bc5 {[%clk 0:00:02.3]} 30. Kg2 {[%clk 0:00:31.5]} 30...
Bd4 {[%clk 0:00:02.9]} 31. Ne2 {[%clk 0:00:30.9]} 1-0

[Event "*** SCC Grand Prix: Titled Tuesday Blitz"]
[Site "Chess.com"]
[Date "2020.06.02"]
[Round "5"]
[White "MNyuyu"]
[Black "pooh2012"]
[Result "1-0"]
[WhiteElo "2281"]
[BlackElo "2413"]
[TimeControl "180+1"]
[EndTime "10:58:08 PDT"]
[Termination "MNyuyu won on time"]

1. d4 {[%clk 0:03:00.9]} 1... Nf6 {[%clk 0:02:59.3]} 2. Nf3 {[%clk 0:03:00.9]}
2... e6 {[%clk 0:02:57.1]} 3. Bg5 {[%clk 0:02:59.9]} 3... c5 {[%clk 0:02:53.2]}
4. e3 {[%clk 0:02:59.8]} 4... Qb6 {[%clk 0:02:50.3]} 5. Nbd2 {[%clk 0:02:57.9]}
5... d5 {[%clk 0:02:46]} 6. Bxf6 {[%clk 0:02:54.9]} 6... gxf6 {[%clk 0:02:45.3]}
7. Rb1 {[%clk 0:02:54.4]} 7... Nc6 {[%clk 0:02:39.2]} 8. c3 {[%clk 0:02:51.7]}
8... Bd7 {[%clk 0:02:28.4]} 9. Be2 {[%clk 0:02:51.1]} 9... Qc7 {[%clk
0:02:14.8]} 10. O-O {[%clk 0:02:49.8]} 10... c4 {[%clk 0:02:05.2]} 11. e4 {[%clk
0:02:49]} 11... O-O-O {[%clk 0:01:58.7]} 12. b3 {[%clk 0:02:48.7]} 12... cxb3
{[%clk 0:01:51.2]} 13. Qxb3 {[%clk 0:02:40.4]} 13... Na5 {[%clk 0:01:50.3]} 14.
Qc2 {[%clk 0:02:36]} 14... dxe4 {[%clk 0:01:47]} 15. Nxe4 {[%clk 0:02:32.3]}
15... f5 {[%clk 0:01:45]} 16. Ng3 {[%clk 0:02:17.3]} 16... Bc6 {[%clk
0:01:36.5]} 17. Ne5 {[%clk 0:02:14.7]} 17... Bd6 {[%clk 0:01:31.9]} 18. f4
{[%clk 0:02:07]} 18... Bd5 {[%clk 0:01:06.3]} 19. c4 {[%clk 0:02:04.2]} 19...
Bxe5 {[%clk 0:01:04.8]} 20. dxe5 {[%clk 0:01:59.9]} 20... Qc5+ {[%clk
0:00:49.3]} 21. Kh1 {[%clk 0:01:58.7]} 21... Bc6 {[%clk 0:00:48.9]} 22. Bf3
{[%clk 0:01:57]} 22... Rd4 {[%clk 0:00:38.6]} 23. Bxc6 {[%clk 0:01:55.6]} 23...
Nxc6 {[%clk 0:00:38.5]} 24. Rbc1 {[%clk 0:01:48.8]} 24... Rhd8 {[%clk
0:00:33.1]} 25. Qf2 {[%clk 0:01:48]} 25... b6 {[%clk 0:00:30.8]} 26. Qf3 {[%clk
0:01:47.3]} 26... Rd2 {[%clk 0:00:29.1]} 27. Rg1 {[%clk 0:01:38.5]} 27... Kc7
{[%clk 0:00:27.6]} 28. Qh5 {[%clk 0:01:37.8]} 28... R8d7 {[%clk 0:00:27.7]} 29.
Qxh7 {[%clk 0:01:33]} 29... Rxa2 {[%clk 0:00:27.7]} 30. Nh5 {[%clk 0:01:29.4]}
30... Qe7 {[%clk 0:00:18.5]} 31. Nf6 {[%clk 0:01:28.6]} 31... Rdd2 {[%clk
0:00:18.7]} 32. Qh8 {[%clk 0:01:26.1]} 32... Nd4 {[%clk 0:00:15.7]} 33. c5
{[%clk 0:01:20.2]} 33... bxc5 {[%clk 0:00:14.7]} 34. Ne8+ {[%clk 0:01:19.2]}
34... Kb6 {[%clk 0:00:13]} 35. Nd6 {[%clk 0:01:15.9]} 35... Qc7 {[%clk
0:00:05.6]} 36. Nc4+ {[%clk 0:01:14.7]} 36... Kc6 {[%clk 0:00:05.4]} 37. Nxd2
{[%clk 0:01:14.1]} 37... Rxd2 {[%clk 0:00:06.3]} 38. Qf8 {[%clk 0:01:08.8]}
38... Kd5 {[%clk 0:00:06.1]} 39. Rgd1 {[%clk 0:01:03.4]} 39... Rxd1+ {[%clk
0:00:05.5]} 40. Rxd1 {[%clk 0:01:03]} 40... c4 {[%clk 0:00:05.3]} 41. Qd6+
{[%clk 0:00:56.4]} 41... Qxd6 {[%clk 0:00:01.6]} 42. exd6 {[%clk 0:00:56.1]}
42... c3 {[%clk 0:00:01.3]} 43. d7 {[%clk 0:00:55.8]} 43... c2 {[%clk
0:00:01.7]} 44. d8=Q+ {[%clk 0:00:54.4]} 1-0

[Event "*** SCC Grand Prix: Titled Tuesday Blitz"]
[Site "Chess.com"]
[Date "2020.06.02"]
[Round "5"]
[White "lifeissofun"]
[Black "damayito"]
[Result "1-0"]
[WhiteElo "2266"]
[BlackElo "1654"]
[TimeControl "180+1"]
[EndTime "10:58:09 PDT"]
[Termination "lifeissofun won on time"]

1. e4 {[%clk 0:03:00.9]} 1... e6 {[%clk 0:01:32.9]} 2. d4 {[%clk 0:02:58.6]}
2... d5 {[%clk 0:01:31.5]} 3. Nd2 {[%clk 0:02:58.6]} 3... Nf6 {[%clk 0:01:30.3]}
4. e5 {[%clk 0:02:58.2]} 4... Nfd7 {[%clk 0:01:30.9]} 5. Bd3 {[%clk 0:02:58.6]}
5... c5 {[%clk 0:01:31.4]} 6. c3 {[%clk 0:02:59.2]} 6... Nc6 {[%clk 0:01:31.9]}
7. Ne2 {[%clk 0:02:59.4]} 7... Qb6 {[%clk 0:01:32.4]} 8. Nf3 {[%clk 0:02:59.4]}
8... c4 {[%clk 0:01:32.8]} 9. Bc2 {[%clk 0:02:57]} 9... a5 {[%clk 0:01:32.9]}
10. O-O {[%clk 0:02:57.3]} 10... Qd8 {[%clk 0:01:24.7]} 11. Ng3 {[%clk
0:02:50.9]} 11... h6 {[%clk 0:01:23.2]} 12. Ne1 {[%clk 0:02:47.7]} 12... b5
{[%clk 0:01:14.9]} 13. f4 {[%clk 0:02:44.7]} 13... b4 {[%clk 0:01:05.6]} 14. f5
{[%clk 0:02:44.3]} 14... Qh4 {[%clk 0:00:58]} 15. fxe6 {[%clk 0:02:42.1]} 15...
fxe6 {[%clk 0:00:57.2]} 16. Bg6+ {[%clk 0:02:41.8]} 16... Kd8 {[%clk 0:00:55.9]}
17. Bf7 {[%clk 0:02:33.2]} 17... Nb6 {[%clk 0:00:51.6]} 18. Rf4 {[%clk
0:02:01.7]} 18... Qe7 {[%clk 0:00:47.7]} 19. Qg4 {[%clk 0:02:01.4]} 19... Bd7
{[%clk 0:00:37.3]} 20. Nf3 {[%clk 0:01:49.1]} 20... Kc7 {[%clk 0:00:35.4]} 21.
Bg6 {[%clk 0:01:43.2]} 21... a4 {[%clk 0:00:19.5]} 22. Rf7 {[%clk 0:01:40.8]}
22... Qd8 {[%clk 0:00:17]} 23. Qxe6 {[%clk 0:01:39.8]} 23... Ra7 {[%clk
0:00:15.4]} 24. Bf4 {[%clk 0:01:34.3]} 24... Kc8 {[%clk 0:00:15.4]} 25. Rxd7
{[%clk 0:01:31.6]} 25... Qxd7 {[%clk 0:00:13]} 26. Bf5 {[%clk 0:01:25.8]} 26...
Qxe6 {[%clk 0:00:12.7]} 27. Bxe6+ {[%clk 0:01:25.7]} 27... Kb7 {[%clk
0:00:12.8]} 28. Rf1 {[%clk 0:01:20.8]} 28... Be7 {[%clk 0:00:12.9]} 29. Nf5
{[%clk 0:01:17.9]} 29... Rf8 {[%clk 0:00:10.7]} 30. Bg3 {[%clk 0:00:38]} 30...
b3 {[%clk 0:00:06.3]} 31. a3 {[%clk 0:00:35]} 31... Bg5 {[%clk 0:00:05.6]} 32.
Nxg5 {[%clk 0:00:31.5]} 32... hxg5 {[%clk 0:00:05.2]} 33. Nd6+ {[%clk
0:00:32.2]} 1-0